bitfinex/quotes_BTCUSD_20250620
["timestamp","ask_amount","ask_price","bid_price","bid_amount"]
[1750409312391,0.06685,106250.0,106240.0,0.60528328]
[1750409312876,0.0327,106250.0,106240.0,0.92783997]
[1750409313319,0.0635,106250.0,106240.0,0.92783997]
[1750409313544,0.0635,106250.0,106240.0,0.95572963]
[1750409314214,0.0635,106250.0,106240.0,0.63317294]
[1750409314501,0.0675,106250.0,106240.0,0.95572963]
[1750409314732,0.0675,106250.0,106240.0,0.98559045]
[1750409314980,0.0635,106250.0,106240.0,0.47469294]
[1750409315186,0.06456295,106250.0,106240.0,0.63513294]
[1750409315403,0.06756295,106250.0,106240.0,0.63513294]
[1750409315628,0.06756295,106250.0,106240.0,0.59787997]
[1750409319245,0.06756295,106250.0,106240.0,0.57545047]
[1750409319461,0.06641295,106250.0,106240.0,0.57545047]
[1750409319680,0.06641295,106250.0,106240.0,0.54756081]
[1750409319903,0.06641295,106250.0,106240.0,0.57545047]
[1750409320370,0.06756295,106250.0,106240.0,0.57545047]
[1750409320603,0.06756295,106250.0,106240.0,0.54756081]
[1750409320871,0.06641295,106250.0,106240.0,0.57545047]
[1750409321758,0.06641295,106250.0,106240.0,0.54756081]
[1750409322616,0.06641295,106250.0,106240.0,0.8701175]
[1750409322834,0.03561295,106250.0,106240.0,0.8701175]
[1750409323244,0.03561295,106250.0,106240.0,0.89800716]
[1750409323877,0.06661295,106250.0,106240.0,0.89800716]
[1750409324508,0.06661295,106250.0,106240.0,0.57545047]
[1750409324925,0.06661295,106250.0,106240.0,0.54756081]
[1750409326655,0.06661295,106250.0,106240.0,0.54853081]
[1750409327531,0.06661295,106250.0,106240.0,0.57642047]
[1750409329582,0.06661295,106250.0,106240.0,0.57525047]
[1750409329825,0.06776295,106250.0,106240.0,0.57525047]
[1750409330537,0.06661295,106250.0,106240.0,0.57525047]
[1750409330764,0.06785295,106250.0,106240.0,0.57525047]
[1750409332438,0.06785295,106250.0,106240.0,0.41501047]
[1750409332663,0.06785295,106250.0,106240.0,0.61246344]
[1750409333839,0.06661295,106250.0,106240.0,0.61246344]
[1750409334052,0.06785295,106250.0,106240.0,0.61246344]
[1750409334729,0.06661295,106250.0,106240.0,0.58457378]
[1750409334939,0.06661295,106250.0,106240.0,0.61250673]
[1750409335847,0.06661295,106250.0,106240.0,0.58457378]
[1750409336514,0.06661295,106250.0,106240.0,0.6405432]
[1750409337719,0.06661295,106250.0,106240.0,0.60329023]
[1750409338154,0.06661295,106250.0,106240.0,0.60426023]
[1750409339652,0.06661295,106250.0,106240.0,0.6229167]
[1750409343002,0.06661295,106250.0,106240.0,0.94547339]
[1750409344990,0.06661295,106250.0,106240.0,0.6229167]
[1750409345249,0.06785295,106250.0,106240.0,0.44720585]
[1750409345471,0.06785295,106250.0,106240.0,0.53261996]
[1750409345691,0.06785295,106250.0,106240.0,0.6033287]
[1750409347378,0.06785295,106250.0,106240.0,0.64074725]
[1750409349353,0.06485295,106250.0,106240.0,0.64070725]
[1750409349583,0.06685295,106250.0,106240.0,0.64070725]
[1750409349832,0.06685295,106250.0,106240.0,0.63870725]
[1750409350828,0.09512947,106250.0,106240.0,0.32461718]
[1750409351065,0.30218801,106250.0,106240.0,0.24456032]
[1750409351313,0.11395263,106250.0,106240.0,0.23531438]
[1750409351547,0.07626409,106250.0,106240.0,0.23103109]
[1750409351784,0.11037295,106250.0,106240.0,0.33299065]
[1750409352016,0.06561295,106250.0,106240.0,0.3741106]
[1750409352268,0.06561295,106250.0,106240.0,0.43027849]
[1750409352562,0.06561295,106250.0,106240.0,0.43227849]
[1750409352789,0.06561295,106250.0,106240.0,0.51691107]
[1750409353042,0.06361295,106250.0,106240.0,0.52091107]
[1750409354044,0.06361295,106250.0,106240.0,0.52191107]
[1750409354779,0.06361295,106250.0,106240.0,0.52094107]
[1750409355007,0.07426409,106250.0,106240.0,0.39165878]
[1750409355228,0.09308664,106250.0,106240.0,0.55161878]
[1750409355448,0.074264,106250.0,106240.0,0.55161878]
[1750409355700,0.074264,106250.0,106240.0,0.56615963]
[1750409355938,0.10837295,106250.0,106240.0,0.64721786]
[1750409356659,0.10837295,106250.0,106240.0,0.64717786]
[1750409356875,0.12719532,106250.0,106240.0,0.3109207]
[1750409357102,0.117784,106250.0,106240.0,0.4708407]
[1750409357329,0.13660655,106250.0,106240.0,0.4708407]
[1750409357553,0.12719523,106250.0,106240.0,0.43342215]
[1750409357792,0.12719523,106250.0,106240.0,0.46142867]
[1750409358026,4.64425342,106250.0,106240.0,0.24954936]
[1750409358276,4.64425404,106250.0,106240.0,0.22149033]
[1750409358528,4.64425404,106250.0,106240.0,0.24031464]
[1750409358762,4.64425404,106250.0,106240.0,0.23090253]
[1750409358988,4.63484281,106250.0,106240.0,0.21207804]
[1750409359449,4.62543149,106250.0,106240.0,0.20266557]
[1750409359676,4.62543149,106250.0,106240.0,0.21107804]
[1750409359901,4.62543149,106250.0,106240.0,0.20707804]
[1750409360159,4.61701991,106250.0,106240.0,0.21907804]
[1750409360401,4.95701991,106250.0,106240.0,0.012]
[1750409360636,4.94760824,106250.0,106240.0,0.012]
[1750409361097,4.95421704,106250.0,106240.0,0.012]
[1750409361329,4.94760824,106250.0,106240.0,0.012]
[1750409364671,4.94760824,106250.0,106240.0,0.01011461]
[1750409367439,4.99760824,106250.0,106240.0,0.01011461]
[1750409367671,5.09288717,106250.0,106240.0,0.01011461]
[1750409368777,5.12085093,106250.0,106240.0,0.01011461]
[1750409373156,5.1274509,106250.0,106240.0,0.01011461]
[1750409373988,5.1274509,106250.0,106240.0,0.008]
[1750409374814,4.93922326,106230.0,106220.0,0.22164024]
[1750409375021,4.93101053,106230.0,106220.0,0.212226]
[1750409375442,4.92159753,106230.0,106220.0,0.212226]
[1750409376214,4.92159753,106230.0,106220.0,0.215226]
[1750409376425,4.92159753,106230.0,106220.0,0.22464033]
[1750409376863,4.92259753,106230.0,106220.0,0.23264033]
[1750409378151,4.92259753,106230.0,106220.0,0.223226]
[1750409379409,4.92259753,106230.0,106220.0,0.19928845]
[1750409379650,4.92259753,106230.0,106220.0,0.011]
[1750409380884,4.92259753,106230.0,106220.0,0.20870287]
[1750409381064,4.92259753,106230.0,106220.0,0.02041442]
[1750409381481,4.92259753,106230.0,106220.0,0.011]
[1750409382134,4.92259753,106230.0,106220.0,0.20870269]
[1750409382345,4.92259753,106230.0,106220.0,0.19928845]
[1750409383318,4.92259753,106230.0,106220.0,0.011]
[1750409383798,4.92259753,106230.0,106220.0,0.02041442]
[1750409384044,4.92259753,106230.0,106220.0,0.011]
[1750409384278,4.92259753,106230.0,106220.0,0.2181172]
[1750409384493,4.92259753,106230.0,106220.0,0.22753144]
[1750409384924,4.92259753,106230.0,106220.0,0.23694559]
[1750409385564,4.92259753,106230.0,106220.0,0.24635965]
[1750409385798,0.4043,106230.0,106220.0,0.28982207]
[1750409386012,0.46644582,106230.0,106220.0,0.24635903]
[1750409386222,0.48527173,106230.0,106220.0,0.24635903]
[1750409386434,0.49468508,106230.0,106220.0,0.24635903]
[1750409386664,0.49468579,106230.0,106220.0,0.24635903]
[1750409387431,0.68295652,106230.0,106220.0,0.24635903]
[1750409387907,0.48527227,106230.0,106220.0,0.24635903]
[1750409388138,0.001,106230.0,106220.0,0.39045166]
[1750409388347,0.001,106230.0,106220.0,0.61465166]
[1750409388560,0.001,106230.0,106220.0,0.64271069]
[1750409388773,0.18927073,106230.0,106220.0,0.28557551]
[1750409388979,0.08252591,106230.0,106220.0,0.24207158]
[1750409389192,0.09193926,106230.0,106220.0,0.25148538]
[1750409389427,0.28020999,106230.0,106220.0,0.25148538]
[1750409389693,0.1013527,106230.0,106220.0,0.25148538]
[1750409389929,0.09193926,106230.0,106220.0,0.25148538]
[1750409390170,0.09073926,106230.0,106220.0,0.25148538]
[1750409390406,0.12464591,106230.0,106220.0,0.25148538]
[1750409390631,0.13405918,106230.0,106220.0,0.31516435]
[1750409391126,0.13405909,106230.0,106220.0,0.31516435]
[1750409391321,0.14347236,106230.0,106220.0,0.31516435]
[1750409391580,0.14347236,106230.0,106220.0,0.25148538]
[1750409392041,0.13405909,106230.0,106220.0,0.25148538]
[1750409392425,0.14347244,106230.0,106220.0,0.25148538]
[1750409392651,0.14471244,106230.0,106220.0,0.25148538]
[1750409393554,0.6823967,106230.0,106220.0,0.24207158]
[1750409394092,0.49412588,106230.0,106220.0,0.24207158]
[1750409394369,0.45357244,106230.0,106220.0,0.25148538]
[1750409394577,0.49418588,106230.0,106220.0,0.25148538]
[1750409394873,0.54418588,106230.0,106220.0,0.25148538]
[1750409395075,0.73245732,106230.0,106220.0,0.25148538]
[1750409395229,0.54418659,106230.0,106220.0,0.25148538]
[1750409395430,0.53477306,106230.0,106220.0,0.25148538]
[1750409395987,0.72304379,106230.0,106220.0,0.25148538]
[1750409396152,0.73245732,106230.0,106220.0,0.25148538]
[1750409396492,0.49712,106230.0,106220.0,0.31516435]
[1750409396635,0.51594591,106230.0,106220.0,0.31516435]
[1750409397244,0.52535918,106230.0,106220.0,0.31516435]
[1750409397798,0.72304344,106230.0,106220.0,0.31516435]
[1750409398020,0.53477253,106230.0,106220.0,0.25148538]
[1750409398819,0.53477253,106230.0,106220.0,0.24207158]
[1750409399039,0.52535918,106230.0,106220.0,0.25148538]
[1750409399273,0.72304344,106230.0,106220.0,0.25148538]
[1750409399506,0.72304344,106230.0,106220.0,0.24207158]
[1750409400439,0.72304344,106230.0,106220.0,0.23265769]
[1750409400651,0.71363062,106230.0,106220.0,0.23265769]
[1750409401083,0.71363062,106230.0,106220.0,0.24207149]
[1750409401301,0.71363062,106230.0,106220.0,0.23265769]
[1750409401726,0.71363062,106230.0,106220.0,0.24207166]
[1750409402237,0.71363062,106230.0,106220.0,0.23265769]
[1750409402440,0.69480426,106230.0,106220.0,0.22324363]
[1750409402646,0.69480426,106230.0,106220.0,0.24207202]
[1750409402855,0.69480426,106230.0,106220.0,0.25148608]
[1750409403264,0.69480426,106230.0,106220.0,0.24207202]
[1750409403506,0.68663073,106230.0,106220.0,0.011]
[1750409403705,4.99663073,106230.0,106220.0,0.011]
[1750409404395,0.49712,106230.0,106220.0,0.24207149]
[1750409404615,0.49712,106230.0,106220.0,0.36540945]
[1750409404616,0.051,106230.0,106220.0,0.36540945]
[1750409404832,0.001,106230.0,106220.0,0.42860945]
[1750409405042,0.001,106230.0,106220.0,0.56129785]
[1750409405249,0.001,106230.0,106220.0,0.5238793]
[1750409405998,0.001,106230.0,106220.0,0.56129785]
[1750409407741,0.001,106230.0,106220.0,0.53323882]
[1750409410937,0.001,106230.0,106220.0,0.56134489]
[1750409412443,0.001,106230.0,106220.0,0.65742489]
[1750409413100,0.62211897,106250.0,106220.0,0.65742489]
[1750409413101,4.33874717,106260.0,106250.0,0.25637507]
[1750409413324,0.00047117,106260.0,106250.0,1.57548873]
[1750409413556,0.00047117,106260.0,106250.0,1.96650342]
[1750409413808,0.00047117,106260.0,106250.0,1.49453439]
[1750409414029,0.00047117,106260.0,106250.0,1.58490439]
[1750409414250,0.00047117,106260.0,106250.0,1.53835145]
[1750409415135,0.00047117,106260.0,106250.0,1.54135145]
[1750409415353,0.00047117,106260.0,106250.0,1.11252842]
[1750409415570,0.00047117,106260.0,106250.0,1.59528511]
[1750409415786,0.00147117,106260.0,106250.0,1.59528511]
[1750409416006,0.00147117,106260.0,106250.0,1.59428511]
[1750409416446,0.00247117,106260.0,106250.0,1.59428511]
[1750409416881,0.00247117,106260.0,106250.0,1.62268565]
[1750409417328,0.00247117,106260.0,106250.0,1.65994882]
[1750409419276,0.00247117,106260.0,106250.0,1.52773022]
[1750409419468,0.00247117,106260.0,106250.0,1.20517353]
[1750409419702,0.00247117,106260.0,106250.0,0.69633392]
[1750409419935,0.00247117,106260.0,106250.0,0.43059178]
[1750409420177,0.11128117,106260.0,106250.0,0.21646951]
[1750409420400,0.12069142,106260.0,106250.0,0.3755896]
[1750409420617,0.13010194,106260.0,106250.0,0.20705837]
[1750409420825,4.64714108,106260.0,106250.0,0.19764705]
[1750409421050,4.64714108,106260.0,106250.0,0.20705872]
[1750409421255,4.64614108,106260.0,106250.0,0.20705872]
[1750409421464,4.64614108,106260.0,106250.0,0.2174703]
[1750409421699,4.64614108,106260.0,106250.0,0.20805872]
[1750409421929,4.64614108,106260.0,106250.0,0.20705872]
[1750409422133,4.64514108,106260.0,106250.0,0.2214703]
[1750409422339,4.64514108,106260.0,106250.0,0.23088179]
[1750409422803,4.63573083,106260.0,106250.0,0.20264705]
[1750409423019,4.63573083,106260.0,106250.0,0.21205872]
[1750409423527,4.63573083,106260.0,106250.0,0.2214703]
[1750409423742,4.63573083,106260.0,106250.0,0.005]
[1750409423743,4.96632031,106260.0,106250.0,0.005]
[1750409423959,5.08046454,106260.0,106250.0,0.008]
[1750409424949,5.23954454,106260.0,106250.0,0.003]
[1750409425415,4.58408854,106250.0,106240.0,0.20707451]
[1750409425654,4.59349977,106250.0,106240.0,0.2164868]
[1750409425883,4.60291091,106250.0,106240.0,0.2164868]
[1750409426319,4.60291091,106250.0,106240.0,0.19766204]
[1750409426546,4.40526439,106250.0,106240.0,0.21007442]
[1750409426762,4.59349968,106250.0,106240.0,0.2100746]
[1750409426980,4.59349968,106250.0,106240.0,0.21948707]
[1750409427206,4.60291144,106250.0,106240.0,0.23831165]
[1750409427426,4.60291144,106250.0,106240.0,0.003]
[1750409427649,4.59350021,106250.0,106240.0,0.003]
[1750409427889,4.66995598,106250.0,106240.0,0.003]
[1750409428322,5.00995598,106250.0,106240.0,0.008]
[1750409428761,5.00995598,106250.0,106230.0,0.07624494]
[1750409428762,0.19766548,106240.0,106230.0,0.07624494]
[1750409428985,0.23964666,106220.0,106210.0,0.07624494]
[1750409429262,0.31302666,106220.0,106210.0,0.07624494]
[1750409429484,0.31302666,106220.0,106210.0,0.09078579]
[1750409429702,0.31302666,106220.0,106210.0,0.07624494]
[1750409429933,0.31302666,106220.0,106200.0,0.20812602]
[1750409429934,4.31941504,106210.0,106200.0,0.20812602]
[1750409430156,0.03765989,106210.0,106200.0,0.32223636]
[1750409430373,0.03813106,106210.0,106200.0,0.32223636]
[1750409430594,0.01930089,106210.0,106200.0,0.33677721]
[1750409431025,0.04355117,106210.0,106200.0,0.33677721]
[1750409431864,0.04355117,106210.0,106200.0,0.33877721]
[1750409432075,0.05296577,106210.0,106200.0,0.33877721]
[1750409432752,0.06238063,106210.0,106200.0,0.33877721]
[1750409432982,0.05296577,106210.0,106200.0,0.33877721]
[1750409433649,0.09368045,106210.0,106200.0,0.33877721]
[1750409433881,0.09368054,106210.0,106200.0,0.33877721]
[1750409434101,0.06238054,106210.0,106200.0,0.38159853]
[1750409434337,0.05296577,106210.0,106200.0,0.38159853]
[1750409434572,0.06238054,106210.0,106200.0,0.38159853]
[1750409434783,0.05296577,106210.0,106200.0,0.38159853]
[1750409435000,0.06238054,106210.0,106200.0,0.38159853]
[1750409435250,0.06238054,106210.0,106200.0,0.33877721]
[1750409435483,0.33391671,106210.0,106200.0,0.40249828]
[1750409435749,0.34456201,106210.0,106200.0,0.23408271]
[1750409435981,0.33514741,106210.0,106200.0,0.21525077]
[1750409436241,0.1280108,106210.0,106200.0,0.23408226]
[1750409436468,0.13742593,106210.0,106200.0,0.2434981]
[1750409437341,0.13619584,106210.0,106200.0,0.2434981]
[1750409437549,0.14561097,106210.0,106200.0,0.2434981]
[1750409438422,0.14684097,106210.0,106200.0,0.2434981]
[1750409438841,0.15625619,106210.0,106200.0,0.2434981]
[1750409439509,0.14684097,106210.0,106200.0,0.2434981]
[1750409440504,0.13742584,106210.0,106200.0,0.2434981]
[1750409440723,0.14684097,106210.0,106200.0,0.2434981]
[1750409440934,0.13742584,106210.0,106200.0,0.2434981]
[1750409441376,0.14684097,106210.0,106200.0,0.2434981]
[1750409441854,0.13742584,106210.0,106200.0,0.2434981]
[1750409442122,0.14684097,106210.0,106200.0,0.2434981]
[1750409443285,0.15625619,106210.0,106200.0,0.2434981]
[1750409443506,0.3445629,106210.0,106200.0,0.2434981]
[1750409443992,0.33514804,106210.0,106200.0,0.23408253]
[1750409444244,0.33514804,106210.0,106200.0,0.00297]
[1750409444245,0.47527787,106210.0,106200.0,0.00297]
[1750409444460,0.46586265,106210.0,106200.0,0.00297]
[1750409444674,4.77586265,106210.0,106200.0,0.00297]
[1750409445093,5.11586265,106210.0,106200.0,0.00297]
[1750409445527,5.11570265,106210.0,106200.0,0.00297]
[1750409445744,5.14399165,106210.0,106200.0,0.00297]
[1750409446175,5.14399165,106210.0,106200.0,0.00097]
[1750409446389,5.14399165,106210.0,106200.0,0.00897]
[1750409447189,5.11570265,106210.0,106200.0,0.00897]
[1750409447612,5.11570265,106210.0,106200.0,0.02648379]
[1750409448054,4.91382265,106210.0,106200.0,0.02648379]
[1750409448265,5.11566265,106210.0,106200.0,0.02648379]
[1750409449124,5.11566265,106210.0,106200.0,0.02652348]
[1750409449328,5.11566265,106210.0,106200.0,0.2242634]
[1750409449544,5.11566265,106210.0,106200.0,0.02652348]
[1750409449758,5.11566265,106210.0,106200.0,0.21484739]
[1750409449963,5.10624735,106210.0,106200.0,0.02652348]
[1750409450853,4.99968628,106210.0,106200.0,0.02652348]
[1750409451061,5.20152628,106210.0,106200.0,0.02652348]
[1750409451892,5.20152628,106210.0,106200.0,0.00897]
[1750409452113,5.20152628,106210.0,106200.0,0.02654265]
[1750409454817,5.30973992,106180.0,106170.0,0.0001]
[1750409455503,5.32732797,106180.0,106170.0,0.0031]
[1750409455750,5.30973992,106180.0,106170.0,0.0031]
[1750409455985,5.46865992,106180.0,106170.0,0.0031]
[1750409456408,4.84777487,106180.0,106170.0,0.07934494]
[1750409456615,5.00789487,106180.0,106170.0,0.07934494]
[1750409456821,5.34789487,106180.0,106170.0,0.08034494]
[1750409457249,5.4431738,106180.0,106170.0,0.0041]
[1750409458577,5.46076069,106180.0,106170.0,0.0041]
[1750409460228,5.46080069,106180.0,106170.0,0.0041]
[1750409460450,5.46079079,106180.0,106170.0,0.0041]
[1750409461408,5.46738265,106180.0,106170.0,0.0041]
[1750409461633,4.58063373,106160.0,106150.0,0.0001]
[1750409461867,4.83607266,106160.0,106150.0,0.0001]
[1750409462345,5.19365268,106160.0,106150.0,0.0001]
[1750409462556,5.20024546,106160.0,106150.0,0.0001]
[1750409462793,5.22855046,106160.0,106150.0,0.0001]
[1750409462998,5.22600574,106160.0,106150.0,0.0001]
[1750409463214,5.23759862,106160.0,106150.0,0.0001]
[1750409464249,5.23100574,106160.0,106150.0,0.0001]
[1750409464658,5.09577314,106160.0,106150.0,0.0001]
[1750409464864,5.09218472,106160.0,106150.0,0.0001]
[1750409465070,5.25210472,106160.0,106150.0,0.0001]
[1750409465276,5.04526472,106160.0,106150.0,0.0001]
[1750409465520,5.24710472,106160.0,106150.0,0.0001]
[1750409465726,5.22079972,106160.0,106150.0,0.0001]
[1750409465975,5.22203972,106160.0,106150.0,0.0001]
[1750409467588,5.23957188,106160.0,106150.0,0.0001]
[1750409468017,5.23957265,106160.0,106150.0,0.0001]
[1750409468477,5.22203972,106160.0,106150.0,0.0001]
[1750409469359,5.2496366,106160.0,106150.0,0.0001]
[1750409470917,5.2495566,106160.0,106150.0,0.0001]
[1750409472409,5.2778616,106160.0,106150.0,0.0001]
[1750409473046,5.0761016,106160.0,106150.0,0.0001]
[1750409473247,5.2778616,106160.0,106150.0,0.0001]
[1750409473937,5.3278616,106160.0,106150.0,0.0001]
[1750409475922,5.2995566,106160.0,106150.0,0.0001]
[1750409476779,5.3278616,106160.0,106150.0,0.0001]
[1750409478332,5.33444806,106160.0,106150.0,0.0001]
[1750409478539,5.3278616,106160.0,106150.0,0.0001]
[1750409478756,5.33445001,106160.0,106150.0,0.0001]
[1750409478997,5.30614501,106160.0,106150.0,0.0001]
[1750409479447,5.20732007,106160.0,106150.0,0.0011]
[1750409480572,5.2139308,106160.0,106150.0,0.0011]
[1750409481444,4.91689187,106160.0,106150.0,0.0001]
[1750409481668,5.11861187,106160.0,106150.0,0.18851262]
[1750409481866,5.11861187,106160.0,106150.0,0.19793325]
[1750409482103,5.11861187,106160.0,106150.0,0.0001]
[1750409483361,5.14871187,106160.0,106150.0,0.0001]
[1750409483592,5.17871274,106160.0,106150.0,0.0001]
[1750409484373,5.17986274,106160.0,106150.0,0.0001]
[1750409486301,5.27514167,106160.0,106150.0,0.0001]
[1750409486794,5.26853007,106160.0,106150.0,0.0001]
[1750409487663,5.26589807,106160.0,106150.0,0.0001]
[1750409493775,5.29016919,106160.0,106150.0,0.0001]
[1750409496285,5.29017178,106160.0,106150.0,0.0001]
[1750409498662,5.31847878,106160.0,106150.0,0.0001]
[1750409499054,5.31848512,106160.0,106150.0,0.0001]
[1750409501137,5.31848512,106160.0,106120.0,0.0001]
[1750409501138,4.84787034,106130.0,106120.0,0.0001]
[1750409501380,5.30161932,106130.0,106120.0,0.0001]
[1750409501619,5.46041932,106130.0,106120.0,0.0001]
[1750409501862,5.4710751,106130.0,106120.0,0.0001]
[1750409502133,5.48873263,106130.0,106120.0,0.0001]
[1750409502978,5.48873263,106130.0,106120.0,0.0011]
[1750409503420,5.53873263,106130.0,106120.0,0.0011]
[1750409503634,6.03693263,106130.0,106120.0,0.0011]
[1750409503847,4.91128899,106120.0,106110.0,0.0001]
[1750409504061,5.19079728,106120.0,106110.0,0.0001]
[1750409504490,5.23240728,106120.0,106110.0,0.0001]
[1750409504701,5.22574037,106120.0,106110.0,0.0001]
[1750409504911,5.23625095,106120.0,106110.0,0.0001]
[1750409505118,5.23625095,106120.0,106110.0,0.00024129]
[1750409506454,5.17170095,106120.0,106110.0,0.00024129]
[1750409506691,5.1540885,106120.0,106110.0,0.00424129]
[1750409507815,5.1847885,106120.0,106110.0,0.00424129]
[1750409509095,5.2168385,106120.0,106110.0,0.00424129]
[1750409510778,5.2156885,106120.0,106110.0,0.00424129]
[1750409511839,5.1540885,106120.0,106110.0,0.00424129]
[1750409512059,4.67820671,106120.0,106110.0,0.26684911]
[1750409512278,0.05218249,106120.0,106110.0,0.30966143]
[1750409512489,0.21094258,106120.0,106110.0,0.30966143]
[1750409512698,0.05218258,106120.0,106110.0,0.30966143]
[1750409512905,0.05218249,106120.0,106110.0,0.30966143]
[1750409513119,0.04276,106120.0,106110.0,0.30966143]
[1750409513326,0.05218249,106120.0,106110.0,0.30966143]
[1750409513959,0.04276,106120.0,106110.0,0.30966143]
[1750409514391,0.22628,106130.0,106120.0,0.29367553]
[1750409514603,0.26904,106130.0,106120.0,0.29367553]
[1750409514819,0.27846169,106130.0,106120.0,0.29367553]
[1750409515037,0.26904,106130.0,106120.0,0.29467553]
[1750409515512,0.22628,106130.0,106120.0,0.29467553]
[1750409515825,0.26904,106130.0,106120.0,0.29467553]
[1750409516300,0.2784616,106130.0,106120.0,0.29467553]
[1750409516487,0.22628,106130.0,106120.0,0.29467553]
[1750409516748,0.26904,106130.0,106120.0,0.29467553]
[1750409517236,0.2784616,106130.0,106120.0,0.29467553]
[1750409517696,0.26904,106130.0,106120.0,0.29467553]
[1750409518121,0.22628,106130.0,106120.0,0.29467553]
[1750409518384,0.28788338,106130.0,106120.0,0.29467553]
[1750409518630,0.29730534,106130.0,106120.0,0.29467553]
[1750409518842,0.30672739,106130.0,106120.0,0.29467553]
[1750409519256,0.29730525,106130.0,106120.0,0.29467553]
[1750409519739,0.29730525,106130.0,106120.0,0.26397553]
[1750409520153,0.31614944,106130.0,106120.0,0.26397553]
[1750409520358,0.50459818,106130.0,106120.0,0.24069856]
[1750409520576,0.31615006,106130.0,106120.0,0.24069856]
[1750409521082,4.81459818,106130.0,106120.0,0.23127589]
[1750409521283,4.8145988,106130.0,106120.0,0.24069865]
[1750409521487,4.80517693,106130.0,106120.0,0.2261578]
[1750409521926,4.80517693,106130.0,106120.0,0.23558047]
[1750409522668,4.80517693,106130.0,106120.0,0.2261578]
[1750409523317,4.77691052,106130.0,106110.0,0.25302493]
[1750409523544,0.01884516,106120.0,106110.0,0.25461298]
[1750409523751,0.02826801,106120.0,106110.0,0.25461298]
[1750409523961,0.01884516,106120.0,106110.0,0.22211298]
[1750409524201,0.01884507,106120.0,106110.0,0.22211298]
[1750409524424,0.01884507,106120.0,106110.0,0.28531298]
[1750409524928,0.03769076,106120.0,106110.0,0.22211298]
[1750409525150,0.03769076,106120.0,106110.0,0.22311298]
[1750409525362,0.02826783,106120.0,106110.0,0.22511298]
[1750409525584,4.89041184,106120.0,106110.0,0.00224129]
[1750409525795,4.92301184,106120.0,106110.0,0.00424129]
[1750409526026,5.01709077,106120.0,106110.0,0.00424129]
[1750409526241,5.01829077,106120.0,106110.0,0.00424129]
[1750409526676,5.04247207,106120.0,106110.0,0.00424129]
[1750409526896,5.04246723,106120.0,106110.0,0.00424129]
[1750409528297,5.02488435,106120.0,106110.0,0.00424129]
[1750409528507,5.22628435,106120.0,106110.0,0.00424129]
[1750409528721,5.24385545,106120.0,106110.0,0.00424129]
[1750409528935,5.22628435,106120.0,106110.0,0.00424129]
[1750409529814,5.22628044,106120.0,106110.0,0.00424129]
[1750409533107,5.24384188,106120.0,106110.0,0.00424129]
[1750409533321,5.27215988,106120.0,106110.0,0.00424129]
[1750409533531,5.25459844,106120.0,106110.0,0.00424129]
[1750409533736,5.24800877,106120.0,106110.0,0.00424129]
[1750409534152,5.25459289,106120.0,106110.0,0.00424129]
[1750409534366,5.24800877,106120.0,106110.0,0.00424129]
[1750409534577,5.25459139,106120.0,106110.0,0.00424129]
[1750409534970,5.25459122,106120.0,106110.0,0.00424129]
[1750409535429,5.25459114,106120.0,106110.0,0.00424129]
[1750409535640,5.24800877,106120.0,106110.0,0.00424129]
[1750409536131,5.24788877,106120.0,106110.0,0.00424129]
[1750409536331,4.90788877,106120.0,106110.0,0.00424129]
[1750409537177,5.24788877,106120.0,106110.0,0.00424129]
[1750409537457,5.03297197,106120.0,106110.0,0.20214911]
[1750409537700,5.05859219,106120.0,106110.0,0.00324129]
[1750409537933,5.06664405,106120.0,106110.0,0.00324129]
[1750409538154,5.05859219,106120.0,106110.0,0.00324129]
[1750409538607,5.05859219,106120.0,106110.0,0.00124129]
[1750409538821,5.05859219,106120.0,106110.0,0.2085732]
[1750409539265,4.55995219,106120.0,106110.0,0.2179972]
[1750409539483,4.51731219,106120.0,106110.0,0.22742102]
[1750409539700,5.05859219,106120.0,106110.0,0.22742102]
[1750409540556,5.05855219,106120.0,106110.0,0.22742102]
[1750409541414,4.89995219,106120.0,106110.0,0.29122102]
[1750409541631,5.06797548,106120.0,106110.0,0.30064466]
[1750409541848,5.06797548,106120.0,106110.0,0.2817972]
[1750409543190,5.06797548,106120.0,106110.0,0.2495972]
[1750409543393,4.93245237,106120.0,106110.0,0.00024129]
[1750409543598,5.2187913,106120.0,106110.0,0.00024129]
[1750409545838,5.22537769,106120.0,106110.0,0.00024129]
[1750409546713,5.25369475,106120.0,106110.0,0.00024129]
[1750409548616,5.2471083,106120.0,106110.0,0.00024129]
[1750409548836,5.25369626,106120.0,106110.0,0.00024129]
[1750409549716,5.25365626,106120.0,106110.0,0.00024129]
[1750409549947,5.0458683,106120.0,106110.0,0.00024129]
[1750409550285,5.0873483,106120.0,106110.0,0.00024129]
[1750409550370,5.0447083,106120.0,106110.0,0.00024129]
[1750409550871,5.2146083,106120.0,106110.0,0.00024129]
[1750409551353,5.1821083,106120.0,106110.0,0.00024129]
[1750409551581,5.1821083,106120.0,106110.0,0.00124129]
[1750409551826,5.1821083,106120.0,106110.0,0.00024129]
[1750409552060,5.2154083,106120.0,106110.0,0.00024129]
[1750409553630,5.1820683,106120.0,106110.0,0.00024129]
[1750409554357,5.2122683,106120.0,106110.0,0.00024129]
[1750409557231,5.02354794,106120.0,106110.0,0.18872493]
[1750409557457,0.57889993,106120.0,106110.0,0.26987293]
[1750409557700,0.76727762,106120.0,106110.0,0.27929675]
[1750409557963,0.75785495,106120.0,106110.0,0.26044902]
[1750409558185,5.04900917,106120.0,106110.0,0.19814911]
[1750409558406,5.04900917,106120.0,106110.0,0.18872493]
[1750409558618,5.04900917,106120.0,106110.0,0.19814911]
[1750409559108,5.04900917,106120.0,106110.0,0.18872493]
[1750409559315,5.04900917,106120.0,106110.0,0.19814911]
[1750409559536,5.03958588,106120.0,106110.0,0.00024129]
[1750409559748,5.16746481,106120.0,106110.0,0.00024129]
[1750409560187,5.13486481,106120.0,106110.0,0.00024129]
[1750409560420,5.13486481,106120.0,106110.0,0.18972493]
[1750409560610,5.13486481,106120.0,106110.0,0.00124129]
[1750409561254,5.14428792,106120.0,106110.0,0.18972493]
[1750409561481,5.14428792,106120.0,106110.0,0.19914911]
[1750409562130,5.14428792,106120.0,106110.0,0.2179972]
[1750409562329,4.99385978,106120.0,106110.0,0.19914911]
[1750409562506,4.84788899,106120.0,106110.0,0.19914911]
[1750409562716,5.03946588,106120.0,106110.0,0.19914911]
[1750409562913,5.03946588,106120.0,106110.0,0.18972493]
[1750409563367,5.03946588,106120.0,106110.0,0.19914911]
[1750409563990,5.03946588,106120.0,106110.0,0.2085732]
[1750409564624,5.03946588,106120.0,106110.0,0.2179972]
[1750409564838,5.03946588,106120.0,106110.0,0.2085732]
[1750409565047,5.03946588,106120.0,106110.0,0.19914911]
[1750409565720,5.03946588,106120.0,106110.0,0.18972493]
[1750409565930,5.03946588,106120.0,106110.0,0.19914911]
[1750409566568,5.03946588,106120.0,106110.0,0.2085732]
[1750409567407,5.03946588,106120.0,106110.0,0.00024129]